fUSD/lending_fUSD_20250818
["ID","MTS","AMOUNT","RATE_DAILY","PERIOD"]
[380027637,1755483068349,-782.95,0.00013698,2]
[380027638,1755483068359,-400.0,0.00013698,2]
[380027639,1755483068369,-2538.21,0.00013698,2]
[380027640,1755483068378,-400.0,0.00013698,2]
[380027641,1755483068387,-400.14554449,0.00013698,2]
[380027642,1755483068396,-4246.24,0.00013698,2]
[380027643,1755483068405,-537.68319722,0.00013698,2]
[380027644,1755483068414,-400.0,0.00013698,2]
[380027645,1755483068424,-1552.86,0.00013698,2]
[380027646,1755483068433,-2281.34,0.00013698,2]
[380027647,1755483068442,-400.0,0.00013698,2]
[380027648,1755483068450,-3924.64,0.00013698,2]
[380027649,1755483068459,-11781.86,0.00013698,2]
[380027650,1755483068468,-2403.79,0.00013698,2]
[380027651,1755483068477,-3980.38,0.00013698,2]
[380027652,1755483068486,-400.0,0.00013698,2]
[380027653,1755483068495,-400.0,0.00013698,2]
[380027654,1755483068504,-400.0,0.00013698,2]
[380027655,1755483068513,-400.0,0.00013698,2]
[380027656,1755483068522,-1600.09,0.00013698,2]
[380027657,1755483068532,-901.42,0.00013698,2]
[380027658,1755483068544,-574.61,0.00013698,2]
[380027659,1755483068553,-2066.49,0.00013698,2]
[380027660,1755483068562,-400.0,0.00013698,2]
[380027661,1755483068570,-8137.44,0.00013698,2]
[380027662,1755483068579,-6848.96,0.00013698,2]
[380027663,1755483068588,-4221.14,0.00013698,2]
[380027664,1755483068597,-5102.18,0.00013698,2]
[380027665,1755483068607,-400.0,0.00013698,2]
[380027666,1755483068617,-400.0,0.00013698,2]
[380027667,1755483068626,-400.0,0.00013698,2]
[380027668,1755483068637,-508.62,0.00013698,2]
[380027669,1755483068648,-5346.97,0.00013698,2]
[380027670,1755483068657,-422.14,0.00013698,2]
[380027671,1755483068667,-3798.34,0.00013698,2]
[380027672,1755483068675,-2321.59,0.00013698,2]
[380027673,1755483068684,-400.0,0.00013698,2]
[380027674,1755483068693,-3059.79,0.00013698,2]
[380027675,1755483068702,-400.0,0.00013698,2]
[380027676,1755483068711,-400.0,0.00013698,2]
[380027677,1755483068719,-7893.88,0.00013698,2]
[380027678,1755483068728,-490.2,0.00013698,2]
[380027679,1755483068740,-5954.93,0.00013698,2]
[380027680,1755483068749,-400.0,0.00013698,2]
[380027681,1755483068758,-1168.49,0.00013698,2]
[380027682,1755483068767,-2147.42,0.00013698,2]
[380027683,1755483068777,-2665.92,0.00013698,2]
[380027684,1755483068786,-595.92,0.00013698,2]
[380027685,1755483068797,-5756.17,0.00013698,2]
[380027686,1755483068806,-813.67,0.00013698,2]
[380027687,1755483068815,-4272.14,0.00013698,2]
[380027688,1755483068825,-400.0,0.00013698,2]
[380027689,1755483068835,-420.16,0.00013698,2]
[380027690,1755483068845,-4272.14,0.00013698,2]
[380027691,1755483068854,-843.56,0.00013698,2]
[380027692,1755483068877,-4272.14,0.00013698,2]
[380027693,1755483068896,-4272.14,0.00013698,2]
[380027694,1755483068913,-3292.58,0.00013698,2]
[380027695,1755483068933,-4272.14,0.00013698,2]
[380027696,1755483068944,-400.0,0.00013698,2]
[380027697,1755483068953,-695.3,0.00013698,2]
[380027698,1755483068963,-8700.58,0.00013698,2]
[380027699,1755483068972,-4272.14,0.00013698,2]
[380027700,1755483068981,-4958.11,0.00013698,2]
[380027701,1755483068991,-400.0,0.00013698,2]
[380027702,1755483069000,-828.25,0.00013698,2]
[380027703,1755483069010,-793.9,0.00013698,2]
[380027704,1755483069019,-1624.62,0.00013698,2]
[380027705,1755483069028,-400.0,0.00013698,2]
[380027706,1755483069038,-400.0,0.00013698,2]
[380027707,1755483069050,-834.86,0.00013698,2]
[380027708,1755483069059,-400.0,0.00013698,2]
[380027709,1755483069068,-9382.61,0.00013698,2]
[380027710,1755483069077,-6992.41,0.00013698,2]
[380027711,1755483069087,-725.98,0.00013698,2]
[380027712,1755483069096,-400.0,0.00013698,2]
[380027713,1755483069105,-3198.42,0.00013698,2]
[380027714,1755483069114,-1386.25,0.00013698,2]
[380027715,1755483069123,-11156.55,0.00013698,2]
[380027716,1755483069133,-400.0,0.00013698,2]
[380027717,1755483069142,-1075.73,0.00013698,2]
[380027718,1755483069151,-1111.27,0.00013698,2]
[380027719,1755483069161,-5615.71,0.00013698,2]
[380027720,1755483069171,-400.0,0.00013698,2]
[380027721,1755483069180,-500.0,0.00013698,2]
[380027722,1755483069189,-567.06,0.00013698,2]
[380027723,1755483069199,-500.0,0.00013698,2]
[380027724,1755483069208,-3296.59,0.00013698,2]
[380027725,1755483069217,-500.0,0.00013698,2]
[380027726,1755483069226,-500.0,0.00013698,2]
[380027727,1755483069236,-500.0,0.00013698,2]
[380027728,1755483069245,-500.0,0.00013698,2]
[380027729,1755483069254,-500.0,0.00013698,2]
[380027730,1755483069268,-755.33,0.00013698,2]
[380027731,1755483069277,-500.0,0.00013698,2]
[380027732,1755483069286,-755.33,0.00013698,2]
[380027733,1755483069298,-755.33,0.00013698,2]
[380027734,1755483069307,-2683.17,0.00013698,2]
[380027735,1755483069316,-500.0,0.00013698,2]
[380027736,1755483069325,-1603.87,0.00013698,2]
[380027737,1755483069335,-500.0,0.00013698,2]
[380027738,1755483069344,-1603.87,0.00013698,2]
[380027739,1755483069353,-3088.18,0.00013698,2]
[380027740,1755483069363,-755.33,0.00013698,2]
[380027741,1755483069372,-25850.12,0.00013698,2]
[380027742,1755483069381,-4443.15,0.00013698,2]
[380027743,1755483069390,-500.0,0.00013698,2]
[380027744,1755483069399,-755.33,0.00013698,2]
[380027745,1755483069408,-500.0,0.00013698,2]
[380027746,1755483069417,-755.33,0.00013698,2]
[380027747,1755483069426,-500.0,0.00013698,2]
[380027748,1755483069434,-1603.87,0.00013698,2]
[380027749,1755483069443,-755.33,0.00013698,2]
[380027750,1755483069452,-500.0,0.00013698,2]
[380027751,1755483069462,-1603.87,0.00013698,2]
[380027752,1755483069471,-755.33,0.00013698,2]
[380027753,1755483069480,-500.0,0.00013698,2]
[380027754,1755483069489,-2045.45,0.00013698,2]
[380027755,1755483069498,-500.0,0.00013698,2]
[380027756,1755483069507,-1603.87,0.00013698,2]
[380027757,1755483069517,-755.33,0.00013698,2]
[380027758,1755483069525,-362.67577088,0.00013698,2]
[380027759,1755483069534,-500.0,0.00013698,2]
[380027760,1755483069546,-1603.87,0.00013698,2]
[380027761,1755483069555,-755.33,0.00013698,2]
[380027762,1755483069563,-500.0,0.00013698,2]
[380027763,1755483069573,-1603.87,0.00013698,2]
[380027764,1755483069582,-500.0,0.00013698,2]
[380027765,1755483069591,-1603.87,0.00013698,2]
[380027766,1755483069600,-755.33,0.00013698,2]
[380027767,1755483069610,-500.0,0.00013698,2]
[380027768,1755483069619,-1603.87,0.00013698,2]
[380027769,1755483069628,-755.33,0.00013698,2]
[380027770,1755483069638,-500.0,0.00013698,2]
[380027771,1755483069647,-1603.87,0.00013698,2]
[380027772,1755483069657,-500.0,0.00013698,2]
[380027773,1755483069666,-755.33,0.00013698,2]
[380027774,1755483069675,-1603.87,0.00013698,2]
[380027775,1755483069684,-500.0,0.00013698,2]
[380027776,1755483069693,-1603.87,0.00013698,2]
[380027777,1755483069702,-755.33,0.00013698,2]
[380027778,1755483069711,-1603.87,0.00013698,2]
[380027779,1755483069721,-755.33,0.00013698,2]
[380027780,1755483069731,-500.0,0.00013698,2]
[380027781,1755483069741,-1603.87,0.00013698,2]
[380027782,1755483069750,-755.33,0.00013698,2]
[380027783,1755483069760,-537.04828653,0.00013698,2]
[380027784,1755483069770,-755.33,0.00013698,2]
[380027785,1755483069780,-1603.87,0.00013698,2]
[380027786,1755483069788,-755.33,0.00013698,2]
[380027787,1755483069800,-1603.87,0.00013698,2]
[380027788,1755483069809,-4070.86,0.00013698,2]
[380027789,1755483069818,-755.33,0.00013698,2]
[380027790,1755483069827,-1603.87,0.00013698,2]
[380027791,1755483069836,-755.33,0.00013698,2]
[380027792,1755483069847,-1603.87,0.00013698,2]
[380027793,1755483069856,-755.33,0.00013698,2]
[380027794,1755483069866,-400.0,0.00013698,2]
[380027795,1755483069875,-1603.87,0.00013698,2]
[380027796,1755483069884,-755.33,0.00013698,2]
[380027797,1755483069893,-1603.87,0.00013698,2]
[380027798,1755483069903,-755.33,0.00013698,2]
[380027799,1755483069912,-400.0,0.00013698,2]
[380027800,1755483069921,-1603.87,0.00013698,2]
[380027801,1755483069930,-755.52759592,0.00013698,2]
[380027802,1755483069939,-1603.87,0.00013698,2]
[380027803,1755483069948,-1603.87,0.00013698,2]
[380027804,1755483069957,-1603.90908931,0.00013698,2]
[380027805,1755483069967,-2385.88,0.00013698,2]
[380027806,1755483069976,-400.0,0.00013698,2]
[380027807,1755483069985,-570.89,0.00013698,2]
[380027808,1755483069994,-1738.18,0.00013698,2]
[380027809,1755483070003,-400.0,0.00013698,2]
[380027810,1755483070012,-400.0,0.00013698,2]
[380027811,1755483070021,-578.38,0.00013698,2]
[380027812,1755483070031,-400.0,0.00013698,2]
[380027813,1755483070041,-2492.97,0.00013698,2]
[380027814,1755483070052,-330.0,0.00013698,2]
[380027815,1755483070062,-400.0,0.00013698,2]
[380027816,1755483070071,-400.0,0.00013698,2]
[380027817,1755483070080,-5118.42,0.00013698,2]
[380027818,1755483070089,-3921.8,0.00013698,2]
[380027819,1755483070098,-400.0,0.00013698,2]
[380027820,1755483070107,-402.14178599,0.00013698,2]
[380027821,1755483070117,-400.0,0.00013698,2]
[380027822,1755483070126,-1166.35,0.00013698,2]
[380027823,1755483070135,-747.38,0.00013698,2]
[380027824,1755483070144,-153.658598,0.00013698,2]
[380027825,1755483070154,-195.73220608,0.00013698,2]
[380027826,1755483070163,-6317.48,0.00013698,2]
[380027827,1755483070172,-4667.18,0.00013698,2]
[380027828,1755483070181,-400.78419771,0.00013698,2]
[380027829,1755483070190,-400.0,0.00013698,2]
[380027830,1755483070198,-400.0,0.00013698,2]
[380027831,1755483070207,-630.88,0.00013698,2]
[380027832,1755483070216,-503.4124887,0.00013698,2]
[380027833,1755483070226,-6995.7,0.00013698,2]
[380027834,1755483070235,-186.12472024,0.00013698,2]
[380027835,1755483070244,-3274.75,0.00013698,2]
[380027836,1755483070258,-2587.68,0.00013698,2]
[380027837,1755483070267,-400.0,0.00013698,2]
[380027838,1755483070276,-3924.59,0.00013698,2]
[380027839,1755483070285,-1826.33,0.00013698,2]
[380027840,1755483070296,-993.42,0.00013698,2]
[380027841,1755483070305,-2204.75,0.00013698,2]
[380027842,1755483070314,-400.0,0.00013698,2]
[380027843,1755483070323,-803.06,0.00013698,2]
[380027844,1755483070334,-12460.68,0.00013698,2]
[380027845,1755483070343,-1476.32,0.00013698,2]
[380027846,1755483070352,-589.2,0.00013698,2]
[380027847,1755483070361,-6678.78,0.00013698,2]
[380027848,1755483070370,-400.0,0.00013698,2]
[380027849,1755483070379,-717.07,0.00013698,2]
[380027850,1755483070389,-2763.85,0.00013698,2]
[380027851,1755483070398,-2598.35,0.00013698,2]
[380027852,1755483070407,-400.0,0.00013698,2]
[380027853,1755483070416,-400.0,0.00013698,2]
[380027854,1755483070425,-4509.41,0.00013698,2]
[380027855,1755483070434,-400.0,0.00013698,2]
[380027856,1755483070443,-3361.16,0.00013698,2]
[380027857,1755483070452,-12042.8,0.00013698,2]
[380027858,1755483070462,-2622.92,0.00013698,2]
[380027859,1755483070471,-8700.45,0.00013698,2]
[380027860,1755483070480,-400.0,0.00013698,2]
[380027861,1755483070489,-11588.26,0.00013698,2]
[380027862,1755483070498,-2015.62,0.00013698,2]
[380027863,1755483070510,-153.20165,0.00013698,2]
[380027864,1755483070525,-400.0,0.00013698,2]
[380027865,1755483070534,-5534.34,0.00013698,2]
[380027866,1755483070544,-400.0,0.00013698,2]
[380027867,1755483070554,-526.33,0.00013698,2]
[380027868,1755483070564,-400.0,0.00013698,2]
[380027869,1755483070574,-400.0,0.00013698,2]
[380027870,1755483070588,-637.64,0.00013698,2]
[380027871,1755483070603,-568.31,0.00013698,2]
[380027872,1755483070613,-1521.44,0.00013698,2]
[380027873,1755483070623,-150.0,0.00013698,2]
[380027874,1755483070634,-400.43689877,0.00013698,2]
[380027875,1755483070643,-400.0,0.00013698,2]
[380027876,1755483070654,-1959.47,0.00013698,2]
[380027877,1755483070663,-5618.66,0.00013698,2]
[380027878,1755483070672,-153.97828,0.00013698,2]
[380027879,1755483070682,-3129.39,0.00013698,2]
[380027880,1755483070822,-7301.37,0.00013698,2]
[380027881,1755483070832,-841.57,0.00013698,2]
[380027882,1755483070842,-400.0,0.00013698,2]
[380027883,1755483070851,-685.58,0.00013698,2]
[380027884,1755483070860,-400.0,0.00013698,2]
[380027885,1755483070871,-4932.34,0.00013698,2]
[380027886,1755483070880,-400.0,0.00013698,2]
[380027887,1755483070890,-400.0,0.00013698,2]
[380027888,1755483070900,-161.00243,0.00013698,2]
[380027889,1755483070910,-400.0,0.00013698,2]
[380027890,1755483070919,-156.018915,0.00013698,2]
[380027891,1755483070929,-2511.06,0.00013698,2]
[380027892,1755483070939,-455.48,0.00013698,2]
[380027893,1755483070948,-1840.51,0.00013698,2]
[380027894,1755483070958,-400.0,0.00013698,2]
[380027895,1755483070967,-3764.98,0.00013698,2]
[380027896,1755483070977,-400.0,0.00013698,2]
[380027897,1755483070986,-400.0,0.00013698,2]
[380027898,1755483070996,-1165.92,0.00013698,2]
[380027899,1755483071006,-4654.77,0.00013698,2]
[380027900,1755483071017,-534.9646742,0.00013698,2]
[380027901,1755483071027,-402.49,0.00013698,2]
[380027902,1755483071036,-154.402646,0.00013698,2]
[380027903,1755483071049,-1020.55,0.00013698,2]
[380027904,1755483071059,-422.37310968,0.00013698,2]
[380027905,1755483071069,-400.0,0.00013698,2]
[380027906,1755483071079,-400.0,0.00013698,2]
[380027907,1755483071089,-400.0,0.00013698,2]
[380027908,1755483071099,-500.0,0.00013698,2]
[380027909,1755483071108,-400.0,0.00013698,2]
[380027910,1755483071118,-500.0,0.00013698,2]
[380027911,1755483071128,-500.0,0.00013698,2]
[380027912,1755483071138,-500.0,0.00013698,2]
[380027913,1755483071148,-500.0,0.00013699,2]
[380027914,1755483071159,-500.0,0.00013699,2]
[380027915,1755483071169,-7574.78,0.00013699,2]
[380027916,1755483071179,-150.99,0.00013699,2]
[380027917,1755483071189,-911.25,0.00013699,2]
[380027918,1755483071198,-1500.0,0.00013699,2]
[380027919,1755483071208,-3627.73,0.00013699,2]
[380027920,1755483071218,-200.0,0.00013699,2]
[380027921,1755483071227,-1000.0,0.00013699,2]
[380027922,1755483071236,-3618.73,0.00013699,2]
[380027923,1755483071246,-6297.02,0.00013699,2]
[380027924,1755483071255,-610.0,0.00013699,2]
[380027925,1755483071273,-4883.65,0.00013699,2]
[380027926,1755483071283,-306.84,0.00013699,2]
[380027927,1755483071292,-255.7,0.00013699,2]
[380027928,1755483071305,-213.08,0.00013699,2]
[380027929,1755483071315,-177.57,0.00013699,2]
[380027930,1755483071324,-887.87,0.00013699,2]
[380027931,1755483071333,-200.0,0.00013699,2]
[380027932,1755483071344,-500.0,0.00013699,2]
[380027933,1755483071353,-500.0,0.00013699,2]
[380027934,1755483071362,-500.0,0.00013699,2]
[380027935,1755483071372,-500.0,0.00013699,2]
[380027936,1755483071381,-500.0,0.00013699,2]
[380027937,1755483071390,-500.0,0.00013699,2]
[380027938,1755483071399,-500.0,0.00013699,2]
[380027939,1755483071410,-500.0,0.00013699,2]
[380027940,1755483071419,-542.88816318,0.00013699,2]
[380027941,1755483071430,-500.0,0.00013699,2]
[380027942,1755483071440,-201.44375891,0.00013699,2]
[380027943,1755483071450,-500.0,0.00013699,2]
[380027944,1755483071461,-500.0,0.00013699,2]
[380027945,1755483071471,-500.0,0.00013699,2]
[380027946,1755483071480,-163.67182899,0.00013699,2]
[380027947,1755483071489,-500.0,0.00013699,2]
[380027948,1755483071499,-500.0,0.00013699,2]
[380027949,1755483071507,-500.0,0.00013699,2]
[380027950,1755483071517,-160.01284061,0.00013699,2]
[380027951,1755483071526,-160.01190068,0.00013699,2]
[380027952,1755483071535,-578.29577991,0.00013699,2]
[380027953,1755483071546,-160.00300427,0.00013699,2]
[380027954,1755483071555,-159.99350738,0.00013699,2]
[380027955,1755483071565,-500.0,0.00013699,2]
[380027956,1755483071574,-500.0,0.00013699,2]
[380027957,1755483071584,-160.00646194,0.00013699,2]
[380027958,1755483071593,-160.00372491,0.00013699,2]
[380027959,1755483071603,-159.99826631,0.00013699,2]
[380027960,1755483071611,-159.99980911,0.00013699,2]
[380027961,1755483071620,-160.00445115,0.00013699,2]
[380027962,1755483071629,-160.00458507,0.00013699,2]
[380027963,1755483071639,-159.99516239,0.00013699,2]
[380027964,1755483071648,-160.01604902,0.00013699,2]
[380027965,1755483071657,-159.98460032,0.00013699,2]
[380027966,1755483071666,-159.99631022,0.00013699,2]
[380027967,1755483071675,-160.00282716,0.00013699,2]
[380027968,1755483071685,-565.69390898,0.00013699,2]
[380027969,1755483071694,-500.0,0.00013699,2]
[380027970,1755483071703,-500.0,0.00013699,2]
[380027971,1755483071713,-159.9932013,0.00013699,2]
[380027972,1755483071723,-160.01459114,0.00013699,2]
[380027973,1755483071732,-160.00619911,0.00013699,2]
[380027974,1755483071742,-500.0,0.00013699,2]
[380027975,1755483071752,-159.99648079,0.00013699,2]
[380027976,1755483071761,-159.99952028,0.00013699,2]
[380027977,1755483071771,-500.0,0.00013699,2]
[380027978,1755483071780,-160.00910248,0.00013699,2]
[380027979,1755483071789,-500.0,0.00013699,2]
[380027980,1755483071803,-166.31004873,0.00013699,2]
[380027981,1755483071812,-500.0,0.00013699,2]
[380027982,1755483071821,-155.52219057,0.00013699,2]
[380027983,1755483071830,-500.0,0.00013699,2]
[380027984,1755483071839,-500.0,0.00013699,2]
[380027985,1755483071849,-504.34133278,0.00013699,2]
[380027986,1755483071858,-321.43723328,0.00013699,2]
[380027987,1755483071868,-500.0,0.00013699,2]
[380027988,1755483071877,-500.0,0.00013699,2]
[380027989,1755483071886,-500.0,0.00013699,2]
[380027990,1755483071895,-500.0,0.00013699,2]
[380027991,1755483071904,-160.01580022,0.00013699,2]
[380027992,1755483071915,-503.31093264,0.00013699,2]
[380027993,1755483071924,-500.0,0.00013699,2]
[380027994,1755483071933,-500.0,0.00013699,2]
[380027995,1755483071942,-163.00517996,0.00013699,2]
[380027996,1755483071952,-666.0,0.00013699,2]
[380027997,1755483071961,-344.82259692,0.00013699,2]
[380027998,1755483071971,-300.0,0.00013699,2]
[380027999,1755483071981,-150.0,0.00013699,2]
[380028000,1755483071990,-150.0,0.00013699,2]
[380028001,1755483072000,-30260.73605654,0.000137,2]
[380028002,1755483072012,-3896.44436924,0.000137,2]
[380028003,1755483072021,-3896.44436924,0.000137,2]
[380028004,1755483072031,-3896.44436924,0.000137,2]
[380028005,1755483072042,-3896.44436924,0.000137,2]
[380028006,1755483072053,-3896.44436924,0.000137,2]
[380028007,1755483072062,-3896.44436924,0.000137,2]
[380028008,1755483072071,-3896.44436924,0.000137,2]
[380028009,1755483072081,-3896.44436924,0.000137,2]
[380028010,1755483072090,-3896.44436924,0.000137,2]
[380028011,1755483072100,-3896.44436924,0.000137,2]
[380028012,1755483072109,-3896.44436924,0.000137,2]
[380028013,1755483072119,-3896.44436924,0.000137,2]
[380028014,1755483072128,-3896.44436924,0.000137,2]
[380028015,1755483072137,-3896.44436924,0.000137,2]
[380028016,1755483072147,-3896.44436924,0.000137,2]
[380028017,1755483072156,-3896.44436924,0.000137,2]
[380028018,1755483072166,-3896.44436924,0.000137,2]
[380028019,1755483072175,-3896.44436924,0.000137,2]
[380028020,1755483072184,-3896.44436924,0.000137,2]
[380028021,1755483072193,-3896.44,0.000137,2]
[380028022,1755483072204,-9091.70352822,0.000137,2]
[380028023,1755483072213,-9091.70352822,0.000137,2]
[380028024,1755483072222,-9091.70352822,0.000137,2]
[380028025,1755483072231,-9091.70352822,0.000137,2]
[380028026,1755483072241,-9091.70352822,0.000137,2]
[380028027,1755483072251,-9091.70352822,0.000137,2]
[380028028,1755483072265,-9091.70352822,0.000137,2]
[380028029,1755483072274,-9091.70352822,0.000137,2]
[380028030,1755483072283,-9091.70352822,0.000137,2]
[380028031,1755483072295,-9091.70352822,0.000137,2]
[380028032,1755483072304,-9091.70352822,0.000137,2]
[380028033,1755483072314,-9091.70352822,0.000137,2]
[380028034,1755483072323,-9091.70352822,0.000137,2]
[380028035,1755483072333,-9091.70352822,0.000137,2]
[380028036,1755483072342,-9091.70352822,0.000137,2]
[380028037,1755483072352,-9091.70352822,0.000137,2]
[380028038,1755483072361,-9091.70352822,0.000137,2]
[380028039,1755483072371,-9091.70352822,0.000137,2]
[380028040,1755483072382,-9091.70352822,0.000137,2]
[380028041,1755483072391,-9091.7,0.000137,2]
[380028042,1755483072400,-2056.81483598,0.000137,2]
[380028043,1755483072409,-2056.81483598,0.000137,2]
[380028044,1755483072419,-2056.81483598,0.000137,2]
[380028045,1755483072428,-2056.81483598,0.000137,2]
[380028046,1755483072437,-2056.81483598,0.000137,2]
[380028047,1755483072448,-2056.81483598,0.000137,2]
[380028048,1755483072458,-2056.81483598,0.000137,2]
[380028049,1755483072468,-2056.81483598,0.000137,2]
[380028050,1755483072477,-2056.81483598,0.000137,2]
[380028051,1755483072486,-2056.81483598,0.000137,2]
[380028052,1755483072495,-2056.81483598,0.000137,2]
[380028053,1755483072504,-2056.81483598,0.000137,2]
[380028054,1755483072514,-2056.81483598,0.000137,2]
[380028055,1755483072523,-2056.81483598,0.000137,2]
[380028056,1755483072532,-2056.81483598,0.000137,2]
[380028057,1755483072541,-2056.81483598,0.000137,2]
[380028058,1755483072552,-2056.81483598,0.000137,2]
[380028059,1755483072562,-2056.81483598,0.000137,2]
[380028060,1755483072571,-2056.81483598,0.000137,2]
[380028061,1755483072580,-2056.81,0.000137,2]
[380028062,1755483072590,-4799.2346173,0.000137,2]
[380028063,1755483072599,-4799.2346173,0.000137,2]
[380028064,1755483072608,-4799.2346173,0.000137,2]
[380028065,1755483072617,-4799.2346173,0.000137,2]
[380028066,1755483072626,-4799.2346173,0.000137,2]
[380028067,1755483072635,-4799.2346173,0.000137,2]
[380028068,1755483072645,-4799.2346173,0.000137,2]
[380028069,1755483072655,-4799.2346173,0.000137,2]
[380028070,1755483072664,-4799.2346173,0.000137,2]
[380028071,1755483072673,-4799.2346173,0.000137,2]
[380028072,1755483072683,-4799.2346173,0.000137,2]
[380028073,1755483072692,-4799.2346173,0.000137,2]
[380028074,1755483072701,-4799.2346173,0.000137,2]
[380028075,1755483072710,-4799.2346173,0.000137,2]
[380028076,1755483072719,-4799.2346173,0.000137,2]
[380028077,1755483072728,-4799.2346173,0.000137,2]
[380028078,1755483072738,-4799.2346173,0.000137,2]
[380028079,1755483072747,-4799.2346173,0.000137,2]
[380028080,1755483072756,-4799.2346173,0.000137,2]
[380028081,1755483072765,-4799.23,0.000137,2]
[380028082,1755483072776,-2462.60741056,0.000137,2]
[380028083,1755483072785,-2462.60741056,0.000137,2]
[380028084,1755483072795,-2462.60741056,0.000137,2]
[380028085,1755483072804,-2462.60741056,0.000137,2]
[380028086,1755483072814,-2462.60741056,0.000137,2]
[380028087,1755483072823,-2462.60741056,0.000137,2]
[380028088,1755483072832,-2462.60741056,0.000137,2]
[380028089,1755483072842,-2462.60741056,0.000137,2]
[380028090,1755483072851,-2462.60741056,0.000137,2]
[380028091,1755483072860,-2462.60741056,0.000137,2]
[380028092,1755483072870,-2462.60741056,0.000137,2]
[380028093,1755483072879,-2462.60741056,0.000137,2]
[380028094,1755483072888,-2462.60741056,0.000137,2]
[380028095,1755483072897,-2462.60741056,0.000137,2]
[380028096,1755483073252,-2462.60741056,0.000137,2]
[380028097,1755483073278,-2462.60741056,0.000137,2]
[380028098,1755483073287,-2462.60741056,0.000137,2]
[380028099,1755483073301,-2462.60741056,0.000137,2]
[380028100,1755483073311,-2462.60741056,0.000137,2]
[380028101,1755483073321,-2462.6,0.000137,2]
[380028102,1755483073330,-5746.08395797,0.000137,2]
[380028103,1755483073340,-5746.08395797,0.000137,2]
[380028104,1755483073350,-5746.08395797,0.000137,2]
[380028105,1755483073360,-5746.08395797,0.000137,2]
[380028106,1755483073369,-5746.08395797,0.000137,2]
[380028107,1755483073378,-5746.08395797,0.000137,2]
[380028108,1755483073388,-5746.08395797,0.000137,2]
[380028109,1755483073397,-5746.08395797,0.000137,2]
[380028110,1755483073406,-5746.08395797,0.000137,2]
[380028111,1755483073415,-5746.08395797,0.000137,2]
[380028112,1755483073425,-5746.08395797,0.000137,2]
[380028113,1755483073434,-5746.08395797,0.000137,2]
[380028114,1755483073443,-5746.08395797,0.000137,2]
[380028115,1755483073452,-5746.08395797,0.000137,2]
[380028116,1755483073461,-5746.08395797,0.000137,2]
[380028117,1755483073471,-5746.08395797,0.000137,2]
[380028118,1755483073480,-5746.08395797,0.000137,2]
[380028119,1755483073489,-5746.08395797,0.000137,2]
[380028120,1755483073499,-5746.08395797,0.000137,2]
[380028121,1755483073507,-5746.08,0.000137,2]
[380028122,1755483073517,-150.0,0.000137,2]
[380028123,1755483073526,-1000.0,0.000137,2]
[380028124,1755483073535,-250.0,0.000137,2]
[380028125,1755483073547,-250.0,0.000137,2]
[380028126,1755483073556,-250.0,0.000137,2]
[380028127,1755483073566,-250.0,0.000137,2]
[380028128,1755483073576,-250.0,0.000137,2]
[380028129,1755483073585,-250.0,0.000137,2]
[380028130,1755483073595,-250.0,0.000137,2]
[380028131,1755483073604,-250.0,0.000137,2]
[380028132,1755483073614,-250.0,0.000137,2]
[380028133,1755483073623,-250.0,0.000137,2]
[380028134,1755483073634,-250.0,0.000137,2]
[380028135,1755483073643,-250.0,0.000137,2]
[380028136,1755483073653,-250.0,0.000137,2]